bitfinex-derivatives/quotes_ETHF0:USTF0_20250105
["timestamp","ask_amount","ask_price","bid_price","bid_amount"]
[1736062021348,2.10453886,3636.4,3636.3,6.49118188]
[1736062021637,4.26421878,3636.4,3636.3,11.05330368]
[1736062022737,1.82947886,3636.4,3636.0,6.49118188]
[1736062022940,0.4102,3636.3,3636.0,6.49118188]
[1736062023139,0.99887886,3636.1,3636.0,6.49118188]
[1736062023443,1.27395886,3636.1,3636.0,6.49118188]
[1736062024143,0.99887886,3636.1,3636.0,4.56146841]
[1736062024338,1.27395886,3636.1,3636.0,4.56146841]
[1736062028144,0.99887886,3636.1,3635.9,6.49118188]
[1736062028442,0.27509,3636.0,3635.9,6.49118188]
[1736062029345,0.27509,3636.0,3635.9,4.55948145]
[1736062030646,17.16961854,3636.0,3635.6,7.98273938]
[1736062030846,0.27511,3635.7,3635.6,3.05615375]
[1736062031146,3.32886772,3635.7,3635.6,1.70275375]
[1736062031338,8.32886772,3635.7,3635.6,1.70275375]
[1736062031846,11.72369964,3635.7,3634.7,0.4345]
[1736062032041,1.27405886,3634.8,3634.7,0.4345]
[1736062040253,4.20667886,3634.8,3633.6,0.99887886]
[1736062040450,0.27524,3634.1,3633.8,0.99887886]
[1736062040646,1.33123,3634.2,3633.8,0.99887886]
[1736062041138,1.33123,3634.2,3634.0,0.99887886]
[1736062041550,1.33123,3634.2,3634.1,0.417]
[1736062042647,1.056,3634.2,3634.1,0.417]
[1736062042852,0.27519,3634.7,3634.2,0.27523]
[1736062043050,3.2078,3634.8,3634.6,0.99887886]
[1736062043351,4.2638,3634.8,3634.7,0.417]
[1736062044439,3.48299,3634.8,3634.7,0.417]
[1736062046045,3.48299,3634.8,3634.7,0.8314]
[1736062052860,0.27519,3634.8,3634.7,0.8314]
[1736062073268,3.50599825,3634.8,3634.7,0.8314]
[1736062076269,4.99588886,3634.8,3634.7,0.8314]
[1736062077866,4.80893413,3634.8,3634.7,0.8314]
[1736062083274,4.53374413,3634.8,3634.3,0.4509]
[1736062083479,0.27521,3634.4,3634.3,0.9]
[1736062084471,3.9260513,3634.4,3634.3,5.01697415]
[1736062088878,0.68816453,3634.4,3634.3,5.01697415]
[1736062090303,0.27521,3634.4,3634.3,5.01697415]
[1736062091686,0.68816453,3634.4,3634.3,5.01697415]
[1736062093187,0.68816453,3634.4,3634.3,11.51851318]
[1736062094584,0.68816453,3634.4,3634.3,5.01697415]
[1736062096786,0.68816453,3634.4,3634.3,11.51859074]
[1736062098294,0.68816453,3634.4,3634.3,5.01697415]
[1736062108697,0.41295453,3634.4,3634.3,5.01697415]
[1736062109597,0.68816453,3634.4,3634.3,5.01697415]
[1736062109816,0.41295453,3634.4,3634.3,5.01697415]
[1736062111090,0.68816453,3634.4,3634.3,5.01697415]
[1736062112899,0.68816453,3634.4,3634.3,4.11697415]
[1736062113794,0.68816453,3634.4,3634.3,10.61997371]
[1736062116600,5.00534689,3634.4,3634.3,10.61997371]
[1736062116916,6.00422575,3634.4,3634.3,10.61997371]
[1736062118210,1.68704339,3634.4,3634.3,4.11697415]
[1736062119706,0.27522,3634.3,3634.2,6.92519956]
[1736062120405,0.27522,3634.3,3634.2,6.50299956]
[1736062120605,0.70052,3634.3,3634.2,6.50299956]
[1736062121404,0.83825453,3634.3,3634.0,6.50299956]
[1736062121602,1.27411886,3634.1,3634.0,6.50299956]
[1736062122814,1.68707339,3634.1,3634.0,4.118163]
[1736062124010,0.27524,3634.0,3633.9,6.50299956]
[1736062125416,0.27524,3634.0,3633.9,10.61984039]
[1736062127214,3.51223539,3634.0,3633.9,4.11684083]
[1736062128513,0.27524,3634.0,3633.9,4.11684083]
[1736062131010,4.51111425,3634.1,3633.9,4.11684083]
[1736062132013,2.15723356,3634.0,3633.9,4.11684083]
[1736062132212,2.43247356,3634.0,3633.9,4.11684083]
[1736062133525,2.15723356,3634.0,3633.9,4.11684083]
[1736062133716,2.15723356,3634.0,3633.8,6.50299956]
[1736062134630,2.15723356,3634.0,3633.8,6.77825956]
[1736062134952,2.15723356,3634.0,3633.8,6.50299956]
[1736062135944,2.15723356,3634.0,3633.8,6.77825956]
[1736062136447,2.15723356,3634.0,3633.9,4.11478095]
[1736062139011,2.15723356,3634.0,3633.8,6.50299956]
[1736062139311,0.99887886,3633.9,3633.8,6.50299956]
[1736062140117,0.99887886,3633.9,3633.7,7.38769956]
[1736062140317,0.99887886,3633.9,3633.8,4.11464049]
[1736062141620,3.15611242,3633.9,3633.8,4.11464049]
[1736062142207,3.15611242,3633.9,3633.8,4.38990049]
[1736062143018,0.99887886,3633.9,3633.8,4.38990049]
[1736062143211,0.99887886,3633.9,3633.8,4.11464049]
[1736062144118,0.99887886,3633.9,3633.8,4.38990049]
[1736062148921,3.15611242,3633.9,3633.8,4.38990049]
[1736062150119,2.15723356,3633.9,3633.8,4.38990049]
[1736062151025,3.15611242,3634.0,3633.8,10.61764005]
[1736062151226,3.15611242,3634.0,3633.9,0.27525]
[1736062152414,3.15611242,3634.0,3633.9,4.38989049]
[1736062155726,0.99887886,3634.0,3633.9,4.38989049]
[1736062160025,4.23587425,3634.0,3633.9,10.89289005]
[1736062162845,4.64887311,3634.0,3633.9,10.89289005]
[1736062165253,1.41187772,3634.0,3633.9,10.89289005]
[1736062166646,0.99887886,3634.0,3633.9,4.38989049]
[1736062167786,1.41187772,3634.0,3633.9,4.38989049]
[1736062171150,0.99887886,3634.0,3633.9,0.27525]
[1736062180754,1.41188116,3634.0,3633.9,4.39517994]
[1736062181453,1.41188116,3634.0,3633.9,4.11992994]
[1736062181757,1.41188116,3634.0,3633.9,4.39517994]
[1736062183151,10.93302388,3634.0,3633.9,0.27525]
[1736062183856,9.93414502,3634.0,3633.9,0.27525]
[1736062184358,4.73033271,3634.0,3633.9,4.61001814]
[1736062185364,4.23702276,3634.0,3633.9,10.89528344]
[1736062186953,4.23702276,3634.0,3633.9,4.39313122]
[1736062187165,0.99887886,3634.0,3633.9,4.39313122]
[1736062189885,4.23702276,3634.1,3634.0,0.27524]
[1736062190077,4.23702276,3634.1,3634.0,0.71074]
[1736062191473,4.65000356,3634.1,3634.0,11.32849299]
[1736062193000,4.23702276,3634.1,3634.0,11.32849299]
[1736062196165,3.2381439,3634.1,3634.0,11.32849299]
[1736062196363,2.6416139,3634.1,3634.0,12.32737185]
[1736062196755,1.9654139,3634.1,3634.0,12.32737185]
[1736062198264,1.9654139,3634.1,3634.0,15.53517185]
[1736062198468,2.15829521,3634.3,3634.1,0.27524]
[1736062198653,2.15829521,3634.3,3634.2,1.70260886]
[1736062199668,2.15829521,3634.4,3634.2,5.54526008]
[1736062199965,2.15829521,3634.4,3634.3,0.27522]
[1736062200156,2.15829521,3634.4,3634.3,0.68172]
[1736062200365,3.15717407,3634.4,3634.3,0.68172]
[1736062200969,3.15717407,3634.4,3634.3,11.29502583]
[1736062202362,3.15717407,3634.4,3634.3,4.79960122]
[1736062203369,3.15717407,3634.4,3634.3,11.29502583]
[1736062204769,3.15717407,3634.4,3634.3,4.79960122]
[1736062207372,0.99887886,3634.4,3634.3,4.79960122]
[1736062210264,2.15829521,3634.5,3634.3,4.52438122]
[1736062210469,7.43173301,3635.0,3634.9,0.27517]
[1736062210772,7.00243301,3635.0,3634.9,0.27517]
[1736062211876,2.6851026,3635.0,3634.9,0.27517]
[1736062212468,1.6291026,3635.0,3634.9,0.27517]
[1736062212671,0.99887886,3635.1,3635.0,0.27517]
[1736062213673,1.056,3635.2,3635.1,0.27516]
[1736062213880,2.05487886,3635.2,3635.1,0.27516]
[1736062214672,2.4677617,3635.2,3635.1,0.27516]
[1736062216075,0.4182,3635.3,3635.1,0.99887886]
[1736062216273,4.31733041,3635.5,3635.4,0.27514]
[1736062218075,1.17466824,3635.6,3635.5,0.27513]
[1736062218880,0.99887886,3635.6,3635.5,0.27513]
[1736062219887,0.4183,3635.7,3635.6,0.27512]
[1736062220080,1.41717886,3635.7,3635.6,0.27512]
[1736062222385,1.41717886,3635.7,3635.2,0.4506]
[1736062222578,0.99887886,3635.3,3635.2,0.72575]
[1736062226390,1.02687886,3635.3,3635.2,0.72575]
[1736062230798,0.99887886,3635.3,3635.2,0.72575]
[1736062232694,0.4183,3635.7,3635.2,0.4506]
[1736062232695,0.99887886,3635.5,3635.2,0.4506]
[1736062232895,2.05487886,3635.7,3635.6,0.27512]
[1736062233246,0.99887886,3635.9,3635.6,0.99887886]
[1736062233404,4.72663041,3636.0,3635.7,0.4102]
[1736062233405,4.31733041,3636.0,3635.7,0.4102]
[1736062233602,5.37333041,3636.0,3635.9,0.2751]
[1736062234102,4.31733041,3636.0,3635.9,0.2751]
[1736062234893,1.62867679,3636.1,3635.8,1.40487886]
[1736062235195,1.62867679,3636.1,3636.0,0.27509]
[1736062237102,2.62755565,3636.1,3636.0,0.27509]
[1736062239405,0.99887886,3636.1,3636.0,0.27509]
[1736062239807,0.99887886,3636.3,3636.2,0.27508]
[1736062240701,0.99887886,3636.3,3636.2,0.69118]
[1736062244105,0.27508,3636.2,3635.8,0.434]
[1736062244313,0.99887886,3635.9,3635.8,0.434]
[1736062245106,0.8615,3636.1,3635.8,0.434]
[1736062245418,0.99887886,3635.9,3635.8,0.7091]
[1736062245713,0.99887886,3635.9,3635.8,0.434]
[1736062246608,0.27511,3635.8,3635.4,0.27513]
[1736062246808,0.99887886,3635.5,3635.4,0.70913]
[1736062247111,0.99887886,3635.5,3635.4,0.434]
[1736062247310,1.99775772,3635.5,3634.7,3.2078]
[1736062247514,0.99887886,3635.1,3635.0,5.157372]
[1736062247719,0.99887886,3635.1,3635.0,5.432542]
[1736062248019,0.99887886,3635.1,3635.0,1.10587]
[1736062248217,2.65376562,3635.4,3635.0,0.8307]
[1736062248416,2.65376562,3635.4,3635.1,0.27515]
[1736062248713,2.65376562,3635.4,3635.2,0.27515]
[1736062250306,2.65376562,3635.4,3635.0,0.8307]
[1736062250514,2.65376562,3635.4,3635.2,0.27515]
[1736062252816,2.65376562,3635.4,3635.1,0.27516]
[1736062253211,2.65376562,3635.4,3635.0,1.10586]
[1736062253518,2.21506562,3635.1,3635.0,1.10586]
[1736062254420,2.21506562,3635.1,3635.0,0.8307]
[1736062256011,2.21506562,3635.1,3635.0,1.10587]
[1736062268328,0.99966094,3635.1,3635.0,1.10587]
[1736062271025,0.99966094,3635.2,3635.0,0.8307]
[1736062271229,0.99966094,3635.2,3635.1,0.27516]
[1736062273229,0.99966094,3635.2,3635.1,3.48296]
[1736062276429,0.99966094,3635.6,3635.5,0.27513]
[1736062279935,0.99966094,3635.6,3635.5,0.72583]
[1736062288731,0.99966094,3635.6,3635.5,1.59403]
[1736062289744,0.99966094,3635.6,3635.5,5.920702]
[1736062294544,0.99966094,3635.6,3635.5,5.645572]
[1736062294738,2.27444188,3635.6,3635.5,4.326672]
[1736062295551,2.68394188,3635.6,3635.5,4.326672]
[1736062296050,2.68394188,3635.6,3635.5,3.651172]
[1736062296243,12.25797529,3635.6,3634.9,1.42517679]
[1736062296545,0.99966094,3635.0,3634.9,1.42517679]
[1736062297647,1.27483094,3635.0,3634.9,1.42517679]
[1736062298050,1.27483094,3635.0,3634.7,3.2078]
[1736062298248,0.99966094,3634.8,3634.7,3.2078]
[1736062300156,1.27484094,3634.8,3634.7,3.2078]
[1736062301252,4.92657028,3634.8,3634.7,3.2078]
[1736062302447,4.92657028,3634.8,3634.6,0.435]
[1736062303649,4.51364222,3634.8,3634.6,0.435]
[1736062307359,0.27519,3634.7,3634.6,0.435]
[1736062308260,4.23846222,3634.8,3634.7,0.72481]
[1736062308762,4.23846222,3634.8,3634.7,1.15161]
[1736062309317,4.51364222,3634.8,3634.7,1.15161]
[1736062309461,1.27484094,3634.8,3634.7,1.15161]
[1736062309755,1.27484094,3634.8,3634.7,0.72481]
[1736062310763,1.68780188,3634.8,3634.7,0.72481]
[1736062313865,4.91959771,3634.8,3634.7,0.72481]
[1736062316352,4.50663677,3634.8,3634.7,0.72481]
[1736062319765,1.27484094,3634.8,3634.7,0.72481]
[1736062325163,3.2078,3634.9,3634.7,0.72481]
[1736062325362,3.23179583,3635.1,3634.8,0.72118]
[1736062325574,3.23179583,3635.1,3634.9,0.4105]
[1736062326470,3.50695583,3635.1,3634.9,0.4105]
[1736062326873,0.27516,3635.1,3634.9,0.4105]
[1736062327773,0.99966094,3635.0,3634.9,0.4105]
[1736062331365,3.48449991,3635.2,3634.9,0.4105]
[1736062331674,0.99966094,3635.0,3634.9,0.4105]
[1736062334778,3.15301085,3635.0,3634.9,0.4105]
[1736062340376,0.99966094,3635.0,3634.9,0.4105]
[1736062341974,0.99966094,3635.0,3634.9,3.89347]
[1736062342172,0.99966094,3635.0,3634.9,3.6183]
[1736062342372,0.99966094,3635.0,3634.9,0.4105]
[1736062343281,0.99966094,3635.0,3634.9,0.68567]
[1736062343476,4.23145677,3635.0,3634.9,0.4105]
[1736062344481,4.23145677,3635.0,3634.9,0.68567]
[1736062344683,4.64436296,3635.0,3634.9,0.4105]
[1736062349359,1.41256713,3635.0,3634.9,0.4105]
[1736062350083,1.68773713,3635.0,3634.9,0.4105]
[1736062350994,0.27518,3634.8,3634.7,0.72481]
[1736062351181,1.27484094,3634.8,3634.7,0.72481]
[1736062352893,5.79300694,3634.8,3634.7,0.72481]
[1736062353387,6.23790694,3634.8,3634.7,0.72481]
[1736062354296,11.6374292,3634.8,3634.7,0.72481]
[1736062361084,6.23790694,3634.8,3634.7,0.72481]
[1736062362384,7.23756788,3634.8,3634.7,0.72481]
[1736062362689,2.71940188,3634.8,3634.7,0.72481]
[1736062362883,2.71940188,3634.8,3634.7,0.16074]
[1736062362884,7.71940188,3634.8,3634.7,0.16074]
[1736062363188,0.27524,3634.0,3633.9,0.4505]
[1736062363388,2.33090094,3634.0,3633.9,0.4505]
[1736062363898,2.05566094,3634.0,3633.7,3.2078]
[1736062364189,1.27492094,3633.8,3633.7,3.2078]
[1736062365389,5.9976729,3633.8,3633.7,3.2078]
[1736062365785,0.27529,3633.4,3633.3,4.0497]
[1736062365987,1.27495094,3633.4,3633.3,4.0497]
[1736062366897,1.27495094,3633.4,3633.3,3.6286]
[1736062368094,3.42835843,3633.4,3633.3,3.6286]
[1736062368295,3.42835843,3633.4,3633.3,0.4208]
[1736062368797,3.42835843,3633.4,3633.3,0.8373]
[1736062369306,1.27495094,3633.4,3633.3,0.8373]
[1736062370189,2.15340749,3633.5,3633.3,0.8373]
[1736062370384,3.42834843,3633.5,3633.3,0.8373]
[1736062370784,1.056,3633.4,3633.3,0.8373]
[1736062371492,2.15340749,3633.6,3633.3,0.8373]
[1736062371800,2.15340749,3633.6,3633.4,0.99966094]
[1736062372002,2.15340749,3633.6,3633.5,0.4274]
[1736062372696,2.05566094,3633.7,3633.5,0.4274]
[1736062373396,0.27527,3633.6,3633.5,0.4274]
[1736062375998,2.33093094,3633.7,3633.5,0.4274]
[1736062377495,0.27527,3633.6,3633.5,0.4274]
[1736062378703,2.33093094,3633.7,3633.5,0.4274]
[1736062379507,2.05566094,3633.7,3633.5,0.4274]
[1736062379709,2.33093094,3633.7,3633.5,0.4274]
[1736062379896,0.99966094,3633.7,3633.5,0.4274]
[1736062381005,1.27493094,3633.7,3633.5,0.4274]
[1736062381704,0.99966094,3633.7,3633.5,0.4274]
[1736062381903,1.27493094,3633.7,3633.5,0.4274]
[1736062383497,0.27527,3633.6,3633.5,0.4274]
[1736062385404,0.99966094,3633.7,3633.5,0.4274]
[1736062385603,1.27493094,3633.7,3633.5,0.4274]
[1736062386308,0.99966094,3633.7,3633.5,0.4274]
[1736062386510,1.27493094,3633.7,3633.5,0.4274]
[1736062389412,5.36120749,3634.1,3633.5,0.4274]
[1736062389612,1.27490094,3634.0,3633.6,1.27493094]
[1736062389913,1.47720749,3634.1,3634.0,0.27524]
[1736062390117,2.05566094,3634.6,3634.0,0.99966094]
[1736062390314,2.05566094,3634.6,3634.2,4.20746094]
[1736062390508,0.99966094,3634.4,3634.2,3.2078]
[1736062392206,2.05566094,3634.6,3634.2,3.2078]
[1736062392404,2.05566094,3634.6,3634.2,4.48268094]
[1736062393008,2.33086094,3634.6,3634.2,4.48268094]
[1736062393513,2.33086094,3634.6,3634.3,1.3203]
[1736062394411,2.05566094,3634.6,3634.3,1.3203]
[1736062394605,0.99966094,3634.4,3634.3,1.3203]
[1736062407423,0.99966094,3634.4,3634.3,0.8711]
[1736062407634,1.27487094,3634.4,3634.3,0.444]
[1736062413324,0.27522,3634.3,3633.9,3.48304]
[1736062413524,0.99966094,3634.2,3634.0,0.4319]
[1736062413726,0.99966094,3634.2,3634.0,0.70714]
[1736062414117,0.4092,3634.3,3634.1,0.27523]
[1736062414519,0.4092,3634.3,3634.2,0.4474]
[1736062418519,0.4092,3634.3,3634.0,0.4319]
[1736062418718,0.99966094,3634.1,3634.0,0.4319]
[1736062418921,0.27524,3634.0,3633.9,3.2078]
[1736062419121,0.99966094,3634.0,3633.9,3.2078]
[1736062420826,1.27490094,3634.0,3633.9,3.2078]
[1736062422624,0.99966094,3634.0,3633.9,3.2078]
[1736062424228,1.27490094,3634.0,3633.9,3.2078]
[1736062427128,1.27490094,3634.0,3633.8,3.2078]
[1736062427325,1.43256094,3633.9,3633.8,3.2078]
[1736062429025,1.70781094,3633.9,3633.8,3.2078]
[1736062430031,1.43256094,3633.9,3633.8,3.2078]
[1736062431527,2.76481094,3633.9,3633.8,3.2078]
[1736062434032,5.99887712,3633.9,3633.8,3.2078]
[1736062435332,0.27526,3633.8,3633.5,0.428]
[1736062435536,1.41616094,3633.7,3633.5,0.428]
[1736062437633,1.41616094,3633.7,3633.5,0.70328]
[1736062437830,2.35999618,3633.9,3633.6,1.99932188]
[1736062438030,0.23000632,3634.3,3634.0,0.27524]
[1736062438236,4.44063237,3634.8,3634.7,0.27519]
[1736062438423,4.44063237,3634.8,3634.7,4.48265094]
[1736062438628,4.44063237,3634.8,3634.7,9.48265094]
[1736062438937,4.44063237,3634.8,3634.7,4.48265094]
[1736062439141,4.44063237,3634.8,3634.7,9.48265094]
[1736062439635,3.76523237,3634.8,3634.7,9.48265094]
[1736062440133,2.58967237,3634.8,3634.7,9.48265094]
[1736062440339,0.4167,3635.9,3635.5,0.27512]
[1736062440533,0.4167,3635.9,3635.5,3.48292]
[1736062441331,0.4167,3635.9,3635.5,3.2078]
[1736062441531,0.27511,3635.8,3635.5,3.2078]
[1736062441835,0.72371,3635.8,3635.5,3.2078]
[1736062442534,0.72371,3635.8,3635.5,7.52467437]
[1736062443039,0.4486,3635.8,3635.5,7.52467437]
[1736062443726,0.4486,3635.8,3635.5,3.2078]
[1736062448533,0.4167,3635.9,3635.5,3.2078]
[1736062448830,0.4167,3635.9,3635.8,0.27511]
[1736062449032,0.4167,3635.9,3635.7,0.27511]
[1736062449242,2.63100124,3635.9,3635.5,3.48293]
[1736062449536,2.90610124,3635.9,3635.2,0.27515]
[1736062449731,2.63100124,3635.9,3635.1,4.31687437]
[1736062449930,2.48942124,3635.6,3635.1,4.31687437]
[1736062450137,0.433,3635.5,3635.1,4.31687437]
[1736062450539,0.4471,3635.4,3635.1,4.31687437]
[1736062450741,0.4471,3635.4,3635.1,4.59203437]
[1736062450932,0.4471,3635.4,3635.1,4.31687437]
[1736062451641,0.4471,3635.4,3635.0,3.48297]
[1736062452541,2.21430124,3635.3,3635.0,3.2078]
[1736062452746,0.4106,3635.2,3635.0,3.2078]
[1736062456138,0.4106,3635.2,3634.9,0.27517]
[1736062459745,0.4106,3635.2,3634.7,3.2078]
[1736062459964,0.4106,3635.2,3634.8,0.27518]
[1736062460352,1.41027026,3635.2,3634.8,0.27518]
[1736062462154,1.68543026,3635.2,3634.8,0.27518]
[1736062462641,1.41027026,3635.2,3634.8,0.27518]
[1736062462840,1.41027026,3635.2,3634.7,4.20747026]
[1736062463085,0.4106,3635.2,3634.9,1.27484026]
[1736062464249,0.4106,3635.2,3634.9,0.99967026]
[1736062464448,0.4106,3635.2,3635.0,0.27516]
[1736062464648,0.4106,3635.2,3635.1,0.27516]
[1736062465055,0.4106,3635.2,3635.1,1.27483026]
[1736062468051,0.4106,3635.2,3635.0,0.27516]
[1736062468254,0.4106,3635.2,3634.9,1.27484026]
[1736062468453,1.41027026,3635.2,3634.9,0.99967026]
[1736062468649,1.68542026,3635.2,3634.9,0.99967026]
[1736062470348,0.68575,3635.2,3634.8,3.48298]
[1736062471848,0.68575,3635.2,3634.8,0.27518]
[1736062472048,0.68575,3635.2,3634.8,3.48298]
[1736062474855,0.4106,3635.2,3634.8,3.48298]
[1736062475354,0.68575,3635.2,3634.8,3.48298]
[1736062478054,0.68575,3635.2,3634.8,0.27518]
[1736062478258,0.68575,3635.2,3634.8,3.48298]
[1736062480762,0.4106,3635.2,3634.8,3.2078]
[1736062480951,0.27516,3635.1,3634.8,3.2078]
[1736062481169,0.4106,3635.2,3634.8,3.2078]
[1736062481356,0.27517,3634.9,3634.8,3.2078]
[1736062481559,0.27517,3634.9,3634.8,7.52467437]
[1736062482858,0.27517,3634.9,3634.8,3.2078]
[1736062484161,0.27517,3634.9,3634.8,7.52467437]
[1736062485467,0.27517,3634.9,3634.8,4.31687437]
[1736062490774,1.16107,3634.9,3634.8,4.31687437]
[1736062496776,1.16107,3634.9,3634.8,4.90981812]
[1736062498073,0.27519,3634.7,3634.6,6.47531155]
[1736062499470,0.27519,3634.7,3634.6,11.38546876]
[1736062501077,1.34319,3634.7,3634.6,11.38546876]
[1736062501879,1.34319,3634.7,3634.6,4.32922393]
[1736062502672,1.34319,3634.7,3634.6,3.65322393]
[1736062502881,1.34319,3634.7,3634.6,1.76722393]
[1736062503378,1.068,3634.7,3634.1,17.28662428]
[1736062503579,0.27523,3634.2,3634.1,6.47531155]
[1736062503781,0.27522,3634.3,3634.1,6.47531155]
[1736062504083,0.69252,3634.3,3634.1,6.47531155]
[1736062504275,0.27523,3634.2,3634.1,6.47531155]
[1736062504685,0.27523,3634.2,3634.0,9.68311155]
[1736062506183,0.27523,3634.2,3634.0,3.2078]
[1736062506680,0.4469,3634.5,3634.1,0.99978026]
[1736062506988,6.717167,3634.6,3634.4,0.99978026]
[1736062507286,3.483,3634.6,3634.5,0.4454]
[1736062507782,4.302167,3634.8,3634.5,0.4454]
[1736062507982,4.302167,3634.8,3634.6,0.99978026]
[1736062508177,4.577357,3634.8,3634.6,0.99978026]
[1736062508482,3.509357,3634.8,3634.7,0.4272]
[1736062508983,0.27518,3634.9,3634.7,0.4272]
[1736062509183,0.27517,3634.9,3634.8,0.99978026]
[1736062510481,6.441967,3635.1,3634.8,0.99978026]
[1736062510682,6.441967,3635.1,3635.0,0.99978026]
[1736062512790,5.36302061,3635.1,3635.0,0.99978026]
[1736062513089,5.36302061,3635.1,3634.7,0.4272]
[1736062513090,5.36302061,3635.1,3634.8,0.99978026]
[1736062515839,5.36302061,3635.1,3635.0,0.99978026]
[1736062517400,5.36302061,3635.1,3634.8,0.99978026]
[1736062518896,2.15522061,3635.1,3634.8,0.99978026]
[1736062523197,2.43038061,3635.1,3634.8,0.99978026]
[1736062524303,2.15522061,3635.1,3634.8,0.99978026]
[1736062525707,2.43038061,3635.1,3634.8,0.99978026]
[1736062525952,0.99978026,3635.0,3634.8,0.99978026]
[1736062526108,0.4171,3634.9,3634.8,0.99978026]
[1736062527305,0.4171,3634.9,3634.8,12.30218494]
[1736062531318,0.4171,3634.9,3634.8,12.57736494]
[1736062534307,0.4171,3634.9,3634.8,12.30218494]
[1736062535206,0.4171,3634.9,3634.8,12.57736494]
[1736062536103,0.4171,3634.9,3634.8,12.30218494]
[1736062538818,2.15522061,3635.2,3635.1,0.27516]
[1736062539013,2.15522061,3635.2,3635.1,1.27494026]
[1736062540721,1.85558026,3635.4,3635.1,6.10203339]
[1736062540920,1.27493026,3635.2,3635.1,4.82709313]
[1736062541917,1.27493026,3635.2,3635.1,11.31459176]
[1736062542708,0.99978026,3635.2,3635.1,11.31459176]
[1736062543220,0.99978026,3635.2,3635.1,4.82709313]
[1736062546817,0.99978026,3635.2,3635.0,9.69529863]
[1736062547621,0.99978026,3635.2,3635.0,9.97046863]
[1736062549330,0.99978026,3635.2,3635.1,4.82315764]
[1736062552029,0.99978026,3635.2,3635.1,11.31065627]
[1736062552623,1.27493026,3635.2,3635.1,11.31065627]
[1736062555530,0.99978026,3635.2,3635.1,11.31065627]
[1736062557427,0.99978026,3635.2,3635.1,4.82315764]
[1736062559923,1.27493026,3635.2,3635.1,4.82315764]
[1736062560626,0.99978026,3635.2,3635.1,4.82315764]
[1736062561934,1.27493026,3635.2,3635.1,4.82315764]
[1736062562233,0.99978026,3635.2,3635.1,4.82315764]
[1736062564131,1.27493026,3635.2,3635.1,4.82315764]
[1736062564732,0.99978026,3635.2,3635.1,4.82315764]
[1736062564938,1.27493026,3635.2,3635.1,4.82315764]
[1736062565537,0.99978026,3635.2,3635.1,4.82315764]
[1736062566139,0.27515,3635.3,3635.1,4.82315764]
[1736062567537,0.27515,3635.3,3635.2,11.31694192]
[1736062568135,4.28594087,3635.4,3635.2,11.31694192]
[1736062568729,4.28594087,3635.4,3635.3,4.82315764]
[1736062573939,2.13072026,3635.4,3635.3,11.31694192]
[1736062576639,1.85558026,3635.4,3635.3,11.31694192]
[1736062577043,0.8558,3635.4,3635.3,11.31694192]
[1736062577238,0.4352,3635.4,3635.3,11.31694192]
[1736062577544,3.234167,3635.5,3635.4,0.27514]
[1736062577838,3.234167,3635.5,3635.4,1.27492026]
[1736062578050,3.234167,3635.6,3635.5,0.27513]
[1736062578841,3.234167,3635.6,3635.4,0.99978026]
[1736062579046,3.234167,3635.6,3635.4,1.27491026]
[1736062579558,2.15792433,3635.6,3635.5,4.82315764]
[1736062579946,3.15770459,3635.6,3635.5,4.82315764]
[1736062581148,3.43282459,3635.6,3635.5,4.82315764]
[1736062583345,1.27490026,3635.6,3635.5,11.3192203]
[1736062585248,3.509287,3635.7,3635.5,11.3192203]
[1736062585446,0.27512,3635.6,3635.5,11.3192203]
[1736062586047,3.509287,3635.7,3635.5,11.3192203]
[1736062587349,0.27512,3635.6,3635.5,11.3192203]
[1736062587750,2.4334258,3635.6,3635.4,8.63374874]
[1736062588446,0.4345,3635.5,3635.4,8.63374874]
[1736062590144,0.4345,3635.5,3635.4,4.8296774]
[1736062594448,0.4345,3635.5,3635.4,5.1048174]
[1736062595652,0.4345,3635.5,3635.4,4.8296774]
[1736062595857,0.4345,3635.5,3635.4,13.73856614]
[1736062596652,0.4345,3635.5,3635.4,13.46342614]
[1736062597350,0.4345,3635.5,3635.4,4.8296774]
[1736062597755,0.4345,3635.5,3635.4,5.1048174]
[1736062604761,2.1583058,3635.6,3635.4,5.82945766]
[1736062604957,2.1583058,3635.6,3635.5,0.27513]
[1736062605163,2.1583058,3635.6,3635.4,5.82945766]
[1736062605164,2.1583058,3635.7,3635.4,14.4632064]
[1736062605460,2.1583058,3635.7,3635.6,1.27490026]
[1736062606661,0.4254,3635.8,3635.6,14.4632064]
[1736062606861,0.4254,3635.8,3635.7,0.27511]
[1736062607164,0.4254,3635.8,3635.7,0.70891]
[1736062607961,0.4254,3635.8,3635.7,5.5385874]
[1736062610159,0.4254,3635.8,3635.7,5.2634774]
[1736062610461,0.4254,3635.8,3635.7,4.8296774]
[1736062612358,0.4254,3635.8,3635.7,11.59650609]
[1736062613065,0.4254,3635.8,3635.7,5.1047874]
[1736062623772,0.4254,3635.8,3635.7,13.73853614]
[1736062626578,0.4254,3635.8,3635.7,23.3952712]
[1736062628774,0.4254,3635.8,3635.7,14.76152246]
[1736062631876,0.4254,3635.8,3635.7,17.96932246]
[1736062637479,0.028,3636.0,3635.9,0.2751]
[1736062637675,0.028,3636.0,3635.9,1.27488026]
[1736062638782,0.028,3636.0,3635.9,15.76129272]
[1736062640284,0.8452,3636.3,3635.9,15.48619272]
[1736062640482,0.8452,3636.3,3636.2,0.27508]
[1736062642095,0.8452,3636.3,3636.1,1.27486026]
[1736062642424,0.8452,3636.3,3636.2,13.47833282]
[1736062642788,0.8452,3636.3,3636.2,13.75341282]
[1736062643985,0.8452,3636.3,3636.2,5.1047574]
[1736062660794,0.8452,3636.3,3636.2,6.10453766]
[1736062661806,0.8452,3636.3,3636.2,4.8296774]
[1736062662005,1.12027,3636.3,3636.2,4.8296774]
[1736062662904,1.12027,3636.3,3636.2,4.32341528]
[1736062664008,1.12027,3636.3,3636.1,5.32319554]
[1736062665204,1.12027,3636.3,3636.2,4.32341528]
[1736062668409,1.12027,3636.3,3636.2,4.82357681]
[1736062670806,1.12027,3636.3,3636.1,4.32590292]
[1736062670807,3.2785758,3636.3,3636.1,4.32590292]
[1736062672406,3.2785758,3636.3,3636.2,4.32590292]
[1736062688614,3.0035058,3636.3,3636.2,4.32590292]
[1736062688819,3.0035058,3636.3,3636.2,4.73430292]
[1736062689222,3.0035058,3636.3,3636.2,4.82615953]
[1736062691026,3.2785758,3636.3,3636.2,4.82615953]
[1736062691226,1.12027,3636.3,3636.2,11.31128245]